bitfinex/quotes_BTCUSD_20260310
["timestamp","ask_amount","ask_price","bid_price","bid_amount"]
[1773155064959,0.03,71648.0,71601.0,0.07127142]
[1773155064960,0.0725815,71650.0,71610.0,0.15173059]
[1773155064961,0.0399323,71645.0,71610.0,0.15173059]
[1773155065126,0.0725815,71650.0,71608.0,0.00562]
[1773155065127,0.03,71640.0,71608.0,0.00562]
[1773155065424,0.0699323,71640.0,71610.0,0.14504]
[1773155065631,0.0725815,71650.0,71610.0,0.14504]
[1773155065632,0.03,71636.0,71611.0,0.00144]
[1773155065860,0.03,71636.0,71612.0,0.00144]
[1773155066066,0.03011257,71636.0,71612.0,0.00144]
[1773155066266,0.03011257,71636.0,71610.0,0.29128694]
[1773155066267,0.03011257,71636.0,71613.0,0.00144]
[1773155066691,0.03,71634.0,71614.0,0.06981875]
[1773155067316,0.03,71634.0,71600.0,0.00023]
[1773155067317,0.06979828,71635.0,71604.0,0.00144]
[1773155067318,0.03,71627.0,71604.0,0.00144]
[1773155067562,0.00144,71633.0,71591.0,0.06984074]
[1773155067563,0.08136964,71622.0,71605.0,0.00144]
[1773155067706,0.06979828,71635.0,71593.0,0.06983919]
[1773155067707,0.03,71615.0,71593.0,0.06983919]
[1773155067905,0.06979828,71635.0,71594.0,0.00144]
[1773155067906,0.11136964,71611.0,71594.0,0.00144]
[1773155068123,0.03,71609.0,71591.0,0.06983923]
[1773155068643,0.11136964,71607.0,71592.0,0.00144]
[1773155068798,0.03,71605.0,71593.0,0.06983923]
[1773155068994,0.03,71605.0,71594.0,0.00144]
[1773155069318,0.06982655,71606.0,71589.0,0.00144]
[1773155069319,0.08900464,71598.0,71589.0,0.00144]
[1773155069520,0.06982655,71606.0,71589.0,0.00144]
[1773155069521,0.03,71593.0,71589.0,0.00144]
[1773155069725,0.11900464,71590.0,71589.0,0.00144]
[1773155070309,0.11900464,71590.0,71580.0,0.07547162]
[1773155070660,0.11900464,71590.0,71581.0,0.00144]
[1773155070661,0.11937981,71590.0,71581.0,0.00144]
[1773155070972,0.11937981,71590.0,71579.0,0.07033251]
[1773155070973,0.06982925,71604.0,71582.0,0.00400773]
[1773155071113,0.07558081,71604.0,71582.0,0.0043829]
[1773155071326,0.00144,71627.0,71590.0,0.14623619]
[1773155071531,0.00144,71627.0,71591.0,0.00976001]
[1773155071532,0.09635214,71626.0,71591.0,0.00976001]
[1773155071749,0.09635214,71626.0,71600.0,0.14623619]
[1773155072096,0.03,71623.0,71601.0,0.00144]
[1773155072389,0.03,71623.0,71602.0,0.00144]
[1773155072574,0.09635214,71638.0,71610.0,0.14623619]
[1773155072575,0.06979658,71637.0,71610.0,0.14623619]
[1773155072727,0.06979658,71637.0,71612.0,0.0698207]
[1773155072728,0.06979828,71635.0,71612.0,0.0698207]
[1773155072928,0.08561824,71636.0,71612.0,0.0698207]
[1773155072929,0.08561757,71636.0,71612.0,0.0698207]
[1773155073137,1e-08,71636.0,71612.0,0.0698207]
[1773155073759,0.00011258,71636.0,71612.0,0.0698207]
[1773155074184,0.00011258,71636.0,71613.0,0.00144]
[1773155074383,0.0725816,71650.0,71620.0,0.14623619]
[1773155074384,0.002797,71650.0,71620.0,0.14623619]
[1773155074596,0.002797,71650.0,71620.0,0.14634876]
[1773155074772,0.002797,71650.0,71621.0,0.07125192]
[1773155075006,0.002797,71650.0,71621.0,0.06125192]
[1773155075208,0.06977367,71661.0,71621.0,0.06125192]
[1773155075209,0.0891443,71678.0,71640.0,0.14623619]
[1773155075408,0.00562,71664.0,71650.0,0.14623619]
[1773155075587,1e-08,71675.0,71650.0,0.14488]
[1773155075792,0.003,71710.0,71650.0,0.14488]
[1773155075793,0.00728925,71722.0,71666.0,6.641475]
[1773155075991,0.0891443,71717.0,71675.0,0.00023]
[1773155076221,0.0697175,71718.0,71676.0,0.00144]
[1773155076222,0.03,71714.0,71676.0,0.00144]
[1773155076415,0.03,71714.0,71675.0,0.00023]
[1773155076416,0.03,71714.0,71690.0,0.14623619]
[1773155076623,0.03037556,71714.0,71691.0,0.00144]
[1773155076833,0.03950943,71730.0,71691.0,0.00144]
[1773155076835,0.07268835,71749.0,71701.0,0.06973403]
[1773155077056,0.07268835,71749.0,71703.0,0.180924]
[1773155077057,0.06968835,71748.0,71703.0,0.180924]
[1773155077203,0.06968835,71748.0,71704.0,0.00144]
[1773155077204,0.03,71744.0,71704.0,0.00144]
[1773155077569,0.03,71744.0,71700.0,0.06996403]
[1773155077571,0.03,71738.0,71700.0,0.00023]
[1773155077857,0.03,71721.0,71700.0,0.00144001]
[1773155078009,0.03950943,71728.0,71675.0,0.06998859]
[1773155078010,0.03,71715.0,71675.0,0.06998859]
[1773155078388,0.03,71711.0,71690.0,0.29190304]
[1773155078586,0.03,71711.0,71680.0,0.29190304]
[1773155078862,0.03,71709.0,71681.0,0.00144]
[1773155079055,0.03011259,71709.0,71681.0,0.00144]
[1773155079262,0.03011259,71709.0,71682.0,0.00144]
[1773155079263,0.03,71707.0,71682.0,0.00144]
[1773155079437,0.03,71701.0,71682.0,0.00144]
[1773155080090,0.00011259,71709.0,71682.0,0.00144]
[1773155080091,0.03,71695.0,71682.0,0.00144]
[1773155080299,0.03,71695.0,71664.0,0.07538992]
[1773155080300,0.03950943,71698.0,71664.0,0.07538929]
[1773155080301,0.03,71689.0,71664.0,0.07538929]
[1773155080478,0.03,71689.0,71665.0,0.00144]
[1773155080689,0.14279714,71689.0,71665.0,0.00144]
[1773155080842,0.03,71687.0,71666.0,0.06976809]
[1773155081047,0.00011259,71709.0,71666.0,0.06976809]
[1773155081048,0.06973077,71705.0,71666.0,0.06976809]
[1773155081246,0.12024838,71709.0,71666.0,0.06976809]
[1773155081506,0.06972262,71713.0,71668.0,0.123577]
[1773155081649,0.06944338,71713.0,71666.0,0.06976809]
[1773155081848,0.03,71710.0,71667.0,0.00144]
[1773155082048,0.03,71686.0,71668.0,0.00144]
[1773155082248,0.01,71687.0,71668.0,0.00144]
[1773155082249,0.00301,71687.0,71668.0,0.00144]
[1773155082682,0.01,71714.0,71668.0,0.00144]
[1773155082841,0.01,71714.0,71666.0,0.23732809]
[1773155082842,0.06972333,71712.0,71678.0,0.06975641]
[1773155083046,0.06972333,71712.0,71679.0,0.00144]
[1773155083247,0.03,71711.0,71679.0,0.00144]
[1773155083653,0.03,71711.0,71678.0,0.06975641]
[1773155083866,0.03,71711.0,71679.0,0.16896]
[1773155084599,0.03,71711.0,71680.0,0.00144]
[1773155085008,0.03,71709.0,71681.0,0.06975349]
[1773155085804,0.01011259,71712.0,71682.0,0.543145]
[1773155086005,0.03,71711.0,71682.0,0.543145]
[1773155086234,0.12984919,71734.0,71700.0,0.18672402]
[1773155086431,0.12984919,71734.0,71701.0,0.00144]
[1773155086432,0.06970292,71733.0,71701.0,0.00144]
[1773155086634,0.06970292,71733.0,71702.0,0.00144]
[1773155086953,0.12996163,71734.0,71702.0,0.00144]
[1773155086954,0.12996163,71734.0,71704.0,0.06973111]
[1773155086955,0.00011244,71734.0,71704.0,0.06973111]
[1773155087162,0.00011244,71734.0,71705.0,0.96075]
[1773155087310,0.00011244,71734.0,71706.0,0.318791]
[1773155087505,0.00011244,71734.0,71705.0,0.14176]
[1773155087706,0.00011244,71734.0,71706.0,0.0014]
[1773155087929,0.00011244,71734.0,71707.0,0.0014]
[1773155088142,0.03007329,71744.0,71707.0,0.0014]
[1773155088344,0.003,71749.0,71711.0,1.124714]
[1773155088345,0.07268784,71749.0,71711.0,1.124714]
[1773155088769,0.07268784,71749.0,71711.0,0.875966]
[1773155088770,0.003,71749.0,71711.0,0.875966]
[1773155088969,0.003,71749.0,71713.0,0.214374]
[1773155089388,0.07268803,71749.0,71713.0,0.214374]
[1773155089586,0.3343604,71779.0,71713.0,0.214374]
[1773155089587,0.00144,71766.0,71721.0,0.01975471]
[1773155089788,0.03,71764.0,71721.0,0.01975471]
[1773155089965,0.04503665,71762.0,71722.0,0.0014]
[1773155090172,0.04503665,71762.0,71732.0,0.00048]
[1773155090389,0.00023,71750.0,71732.0,0.00048]
[1773155090560,0.00023,71750.0,71725.0,0.00023]
[1773155090561,0.03,71748.0,71725.0,0.00023]
[1773155090807,0.03,71748.0,71720.0,0.00562]
[1773155090808,0.00023,71750.0,71720.0,0.00562]
[1773155090809,0.01503665,71745.0,71720.0,0.00562]
[1773155090968,0.03,71746.0,71721.0,0.0014]
[1773155090969,0.03,71742.0,71721.0,0.0014]
[1773155091411,0.06620196,71748.0,71721.0,0.00151244]
[1773155091988,0.03,71747.0,71721.0,0.00011244]
[1773155092164,0.01503665,71746.0,71722.0,0.0014]
[1773155092363,0.06620196,71748.0,71723.0,0.0014]
[1773155092364,0.03,71745.0,71723.0,0.0014]
[1773155092564,0.03,71743.0,71724.0,0.0014]
[1773155092985,0.09969369,71743.0,71725.0,0.0697107]
[1773155093221,0.03,71743.0,71725.0,0.0697107]
[1773155093579,0.03,71747.0,71725.0,0.0697107]
[1773155093792,0.06968541,71752.0,71725.0,0.0697107]
[1773155093793,0.01503665,71788.0,71726.0,1.683722]
[1773155093982,0.00523,71800.0,71725.0,0.0699407]
[1773155093983,0.002567,71792.0,71760.0,0.16664591]
[1773155094188,0.002567,71792.0,71750.0,0.00023]
[1773155094189,0.002567,71792.0,71761.0,0.0014]
[1773155094190,0.01503665,71788.0,71761.0,0.0014]
[1773155094392,0.01503665,71788.0,71750.0,0.00023]
[1773155094393,0.07221349,71792.0,71762.0,0.0014]
[1773155094689,0.07221349,71792.0,71750.0,0.16687591]
[1773155094690,0.07221349,71792.0,71770.0,0.16664591]
[1773155094691,1e-08,71792.0,71770.0,0.16664591]
[1773155094891,0.03950943,71820.0,71775.0,0.00023]
[1773155095115,0.03950943,71820.0,71775.0,8.419e-05]
[1773155095116,0.06962236,71816.0,71775.0,8.419e-05]
[1773155095318,0.06962236,71816.0,71776.0,0.00144]
[1773155095516,0.06962236,71816.0,71775.0,8.419e-05]
[1773155095517,0.06962236,71816.0,71780.0,0.16664591]
[1773155095718,0.06962236,71816.0,71781.0,0.00144]
[1773155095719,0.03,71815.0,71781.0,0.00144]
[1773155096002,0.03,71815.0,71775.0,8.419e-05]
[1773155096203,0.06962236,71816.0,71775.0,8.419e-05]
[1773155096204,0.03,71813.0,71775.0,8.419e-05]
[1773155096413,0.03,71811.0,71776.0,0.00144]
[1773155096859,0.03,71811.0,71775.0,8.419e-05]
[1773155096861,0.06962818,71810.0,71775.0,8.419e-05]
[1773155097019,0.04503665,71805.0,71775.0,8.419e-05]
[1773155097214,0.04503665,71805.0,71776.0,0.00144]
[1773155097419,0.03,71805.0,71776.0,0.00144]
[1773155098089,0.06962818,71810.0,71775.0,8.419e-05]
[1773155098090,0.03,71804.0,71775.0,8.419e-05]
[1773155098314,0.03,71804.0,71777.0,0.00144]
[1773155098917,0.03,71802.0,71775.0,8.419e-05]
[1773155099117,0.03,71802.0,71778.0,0.00144]
[1773155099781,0.00144,71822.0,71778.0,0.00144]
[1773155099782,0.06962295,71816.0,71780.0,0.1862996]
[1773155099992,0.03,71815.0,71780.0,0.1862996]
[1773155100201,0.03,71815.0,71778.0,0.00144]
[1773155100202,0.03,71815.0,71790.0,0.1862996]
[1773155100403,0.03,71815.0,71785.0,0.13872]
[1773155100620,0.03,71815.0,71791.0,0.16732]
[1773155100794,0.03,71815.0,71777.0,0.03515602]
[1773155100795,0.01503665,71812.0,71778.0,0.16732]
[1773155100943,0.03,71809.0,71779.0,0.07109825]
[1773155101453,0.03,71809.0,71780.0,0.1862996]
[1773155101863,0.03,71808.0,71780.0,0.1862996]
[1773155102243,0.00126429,71817.0,71781.0,0.664795]
[1773155102462,0.07088596,71817.0,71779.0,0.07109825]
[1773155102753,0.01503665,71815.0,71779.0,0.06965825]
[1773155102952,0.01503665,71815.0,71775.0,8.419e-05]
[1773155102953,0.03,71812.0,71780.0,0.001]
[1773155103158,0.03,71812.0,71746.0,0.01232472]
[1773155103159,0.0710643,71814.0,71746.0,0.01232472]
[1773155103160,0.03,71796.0,71757.0,0.06967881]
[1773155103476,0.03,71790.0,71758.0,0.00436477]
[1773155103613,0.04503665,71786.0,71758.0,0.00436477]
[1773155104092,0.04503665,71786.0,71758.0,0.0014]
[1773155104212,0.03,71786.0,71759.0,0.152286]
[1773155104437,0.03,71786.0,71757.0,0.06967881]
[1773155104438,0.03,71786.0,71760.0,0.00139353]
[1773155104668,0.03,71786.0,71761.0,0.0014]
[1773155104669,0.03,71780.0,71761.0,0.0014]
[1773155104891,0.03,71780.0,71749.0,0.06968693]
[1773155104892,0.0996631,71774.0,71756.0,0.0014]
[1773155105115,0.0996631,71774.0,71733.0,0.06970285]
[1773155105116,0.0996631,71774.0,71733.0,0.07110285]
[1773155105117,0.03,71768.0,71733.0,0.07110285]
[1773155105300,0.03,71762.0,71734.0,0.00150769]
[1773155105500,0.0698931,71775.0,71734.0,0.00150769]
[1773155105501,0.00023,71775.0,71734.0,0.00150769]
[1773155105710,0.01222665,71774.0,71735.0,0.0014]
[1773155105935,0.01222665,71774.0,71736.0,0.00290163]
[1773155106529,0.03,71769.0,71736.0,0.00290163]
[1773155106733,0.03,71765.0,71736.0,0.00290163]
[1773155106942,0.03,71765.0,71722.0,0.06971349]
[1773155106943,0.00011246,71774.0,71724.0,0.06971142]
[1773155106944,0.03,71757.0,71724.0,0.06971142]
[1773155107148,0.06967864,71758.0,71724.0,0.06971142]
[1773155107149,0.03,71751.0,71733.0,0.0014]
[1773155107355,0.03,71747.0,71733.0,0.0014]
[1773155107764,0.03,71745.0,71733.0,0.0014]
[1773155107977,0.03,71743.0,71733.0,0.0014]
[1773155108186,0.04222665,71743.0,71734.0,0.0014]
[1773155108392,0.03,71741.0,71732.0,0.0014]
[1773155108769,0.03,71741.0,71726.0,0.06970952]
[1773155108770,0.03,71741.0,71727.0,0.00034799]
[1773155109000,0.03,71741.0,71723.0,0.06970972]
[1773155109001,0.03,71737.0,71721.0,0.06971458]
[1773155109166,0.03,71737.0,71724.0,0.0014]
[1773155109374,0.06980776,71741.0,71724.0,0.0014]
[1773155109375,0.0001124,71741.0,71724.0,0.0014]
[1773155109579,0.0001124,71741.0,71725.0,0.00027931]
[1773155109781,0.06967625,71761.0,71725.0,0.00027931]
[1773155109782,0.01222665,71760.0,71725.0,0.00027931]
[1773155109981,0.01222665,71760.0,71725.0,0.0001124]
[1773155109982,0.001,71741.0,71725.0,0.0001124]
[1773155110187,0.01222665,71738.0,71721.0,0.06971458]
[1773155110387,0.01222665,71738.0,71722.0,0.0014]
[1773155110388,0.03,71733.0,71722.0,0.0014]
[1773155110586,0.03,71731.0,71711.0,0.06994347]
[1773155110918,0.00155238,71738.0,71711.0,0.06994347]
[1773155110919,0.03,71729.0,71719.0,0.0014]
[1773155111164,0.01222665,71730.0,71703.0,0.06995186]
[1773155111165,0.03,71725.0,71704.0,0.06973056]
[1773155111368,0.06970616,71730.0,71704.0,0.06973056]
[1773155111369,0.08193291,71730.0,71705.0,0.00144]
[1773155111571,0.01222665,71730.0,71705.0,0.00144]
[1773155111969,0.08193276,71730.0,71705.0,0.00144]
[1773155112167,0.03,71728.0,71705.0,0.00144]
[1773155112368,0.06970611,71730.0,71703.0,0.00022]
[1773155112369,0.03,71724.0,71703.0,0.00022]
[1773155112601,0.01222665,71719.0,71693.0,0.06974181]
[1773155112810,0.03,71718.0,71694.0,0.00144]
[1773155113016,0.03,71716.0,71695.0,0.06973987]
[1773155113234,0.04222665,71714.0,71696.0,0.00144]
[1773155113438,0.03,71714.0,71696.0,0.00144]
[1773155113648,0.03,71714.0,71695.0,0.06973987]
[1773155113851,0.07533594,71720.0,71697.0,0.00144]
[1773155113852,0.01222665,71711.0,71697.0,0.00144]
[1773155114065,0.06971847,71717.0,71681.0,0.1678]
[1773155114066,0.06971847,71717.0,71684.0,0.06975057]
[1773155114067,0.03,71708.0,71684.0,0.06975057]
[1773155114281,0.03,71704.0,71684.0,0.00037556]
[1773155114501,0.03,71700.0,71681.0,0.00048]
[1773155114716,0.03,71694.0,71681.0,0.00048]
[1773155114943,0.03,71694.0,71659.0,0.06977476]
[1773155114944,0.00037456,71700.0,71665.0,0.06976836]
[1773155114945,0.03,71692.0,71665.0,0.06976836]
[1773155115175,0.03,71692.0,71650.0,0.16698189]
[1773155115176,0.03,71686.0,71666.0,0.00144]
[1773155115388,0.03,71684.0,71667.0,0.00144]
[1773155115596,0.03,71684.0,71668.0,0.00223094]
[1773155115809,0.06974515,71690.0,71664.0,0.07538906]
[1773155115810,0.06974515,71690.0,71664.0,0.00562]
[1773155115811,0.03,71682.0,71664.0,0.00562]
[1773155116060,0.03,71682.0,71669.0,0.00144]
[1773155116275,0.01222665,71683.0,71669.0,0.00144]
[1773155116276,0.00358905,71683.0,71669.0,0.00144]
[1773155116739,0.00358905,71683.0,71664.0,0.07538924]
[1773155116740,0.00358905,71683.0,71664.0,0.00562]
[1773155117175,0.06974482,71690.0,71664.0,0.00562]
[1773155117176,0.03,71682.0,71666.0,0.06976809]
[1773155117379,0.5019866,71723.0,71666.0,0.06976809]
[1773155117381,0.06973831,71697.0,71666.0,0.06976809]
[1773155117579,0.07034013,71700.0,71666.0,0.06976809]
[1773155117728,0.07824798,71700.0,71666.0,0.06976809]
[1773155117933,0.00060456,71700.0,71667.0,0.165924]
[1773155118131,0.00060456,71700.0,71666.0,0.06976809]
[1773155118132,0.03,71699.0,71666.0,0.06976809]
[1773155118298,0.00790785,71698.0,71668.0,0.00144]
[1773155118541,0.00790785,71696.0,71669.0,0.00144]
[1773155118766,0.00790785,71696.0,71670.0,0.00144]
[1773155119083,0.00790785,71696.0,71664.0,0.0753895]
[1773155119213,0.00790785,71693.0,71671.0,0.00144]
[1773155119605,0.00790785,71693.0,71665.0,0.06976906]
[1773155120069,0.00790785,71693.0,71664.0,0.0753895]
[1773155120070,0.00790785,71693.0,71666.0,0.00144]
[1773155120319,0.06973987,71695.0,71650.0,1.3e-05]
[1773155120320,0.03,71687.0,71650.0,1.3e-05]
[1773155120518,0.18688501,71690.0,71650.0,1.3e-05]
[1773155120519,0.00790785,71674.0,71650.0,0.00144]
[1773155120722,0.00023,71675.0,71638.0,0.06979502]
[1773155120723,0.00144,71673.0,71638.0,0.06979502]
[1773155120927,0.00144,71673.0,71639.0,0.00144]
[1773155120928,0.00581785,71672.0,71639.0,0.00144]
[1773155121136,0.09976322,71671.0,71639.0,0.00144]
[1773155121345,0.09976322,71671.0,71636.0,0.07541692]
[1773155121346,0.00581785,71670.0,71636.0,0.07541692]
[1773155121568,0.09976322,71671.0,71640.0,0.00144]
[1773155121569,0.00581785,71668.0,71640.0,0.00144]
[1773155121776,0.00619218,71668.0,71640.0,0.00144]
[1773155121973,0.00581785,71666.0,71640.0,0.00144]
[1773155122510,0.00581785,71666.0,71636.0,0.07541657]
[1773155122730,0.00144,71667.0,71625.0,0.00023]
[1773155122731,0.00144,71667.0,71630.0,0.0006926]
[1773155122732,0.03,71664.0,71630.0,0.0006926]
[1773155122930,0.03,71664.0,71608.0,0.00562]
[1773155122931,0.03,71658.0,71618.0,0.00144]
[1773155123131,0.00562,71664.0,71619.0,0.06981387]
[1773155123132,0.06978074,71653.0,71619.0,0.06981387]
[1773155123296,0.00581785,71651.0,71620.0,0.0014]
[1773155123495,0.00581785,71651.0,71621.0,0.0014]
[1773155124107,0.03,71652.0,71621.0,0.0014]
[1773155124108,0.00581785,71649.0,71621.0,0.0014]
[1773155124513,0.00581785,71649.0,71613.0,0.06981972]
[1773155124713,0.00581785,71649.0,71614.0,0.00210485]
[1773155125321,0.00581785,71649.0,71615.0,0.06981777]
[1773155125322,0.03,71647.0,71615.0,0.06981777]
[1773155125668,0.03,71647.0,71616.0,0.00070483]
[1773155125839,0.03581785,71647.0,71617.0,0.0014]
[1773155126096,0.03581785,71647.0,71618.0,0.00070481]
[1773155126293,0.00581785,71647.0,71618.0,0.00070481]
[1773155126563,0.00581785,71647.0,71619.0,0.00210479]
[1773155126762,0.00581785,71647.0,71619.0,0.0014]
[1773155127372,0.00581785,71647.0,71620.0,0.0698129]
[1773155127373,0.00581785,71644.0,71620.0,0.0698129]
[1773155127609,0.07122756,71646.0,71612.0,0.00022]
[1773155127610,0.00581785,71638.0,71612.0,0.00022]
[1773155128035,0.00581785,71638.0,71604.0,0.00022]
[1773155128616,0.18688501,71640.0,71600.0,0.00023]
[1773155128617,0.00581785,71635.0,71600.0,0.00023]
[1773155128813,0.00581785,71630.0,71600.0,0.00034257]
[1773155128987,0.00562,71636.0,71600.0,0.00034257]
[1773155128988,0.00581785,71627.0,71600.0,0.00034257]
[1773155129192,0.03,71623.0,71600.0,0.00034257]
[1773155129502,0.00581785,71622.0,71600.0,0.00034257]
[1773155129702,0.00581785,71620.0,71600.0,0.00034257]
[1773155130127,0.03,71623.0,71600.0,0.00034257]
[1773155130128,0.00581785,71618.0,71601.0,0.06983142]
[1773155130655,0.00581785,71618.0,71602.0,0.00181546]
[1773155130970,0.00581785,71618.0,71601.0,0.00144]
[1773155131211,0.001,71620.0,71600.0,0.00034257]
[1773155131212,0.00081785,71620.0,71600.0,0.00034257]
[1773155131413,0.00081785,71620.0,71580.0,0.00562]
[1773155131414,0.00081785,71620.0,71581.0,0.06985093]
[1773155131416,0.00459753,71616.0,71581.0,0.06985093]
[1773155131655,0.00459753,71614.0,71581.0,0.0702261]
[1773155131817,0.00459753,71614.0,71603.0,0.00022]
[1773155132024,0.00459753,71614.0,71581.0,0.06985093]
[1773155132225,0.00459753,71614.0,71582.0,0.00144]
[1773155132630,0.00459753,71614.0,71581.0,0.06985093]
[1773155132631,0.00459753,71613.0,71581.0,0.06985093]
[1773155132931,0.00459753,71613.0,71582.0,0.00144]
[1773155133295,0.00459753,71613.0,71583.0,0.06984898]
[1773155133296,0.03,71611.0,71583.0,0.06984898]
[1773155133500,0.00459753,71610.0,71583.0,0.06984898]
[1773155134072,0.03,71611.0,71585.0,0.025]
[1773155134340,0.03,71611.0,71581.0,0.07022415]
[1773155134576,0.03,71611.0,71581.0,0.00037517]
[1773155134577,0.00459753,71610.0,71581.0,0.00037517]
[1773155134800,0.00459753,71610.0,71555.0,0.00022]
[1773155134801,0.00459753,71610.0,71573.0,0.0698582]
[1773155135038,0.00562,71608.0,71575.0,0.07008655]
[1773155135210,0.00562,71608.0,71576.0,0.00144]
[1773155135211,0.00459753,71607.0,71576.0,0.00144]
[1773155135492,0.00459753,71607.0,71555.0,0.00022]
[1773155135494,0.00459753,71596.0,71555.0,0.00022]
[1773155135680,0.21029735,71598.0,71555.0,0.00022]
[1773155135681,0.00459753,71590.0,71555.0,0.00022]
[1773155135888,0.00459753,71590.0,71550.0,0.00023]
[1773155135889,0.00459753,71586.0,71553.0,0.0698777]
[1773155136062,0.00144,71585.0,71554.0,0.025]
[1773155136288,7.177e-05,71587.0,71554.0,0.025]
[1773155136476,7.177e-05,71587.0,71555.0,0.00139752]
[1773155136690,0.00144,71586.0,71555.0,0.00139752]
[1773155136884,0.00144,71586.0,71552.0,0.07542664]
[1773155136885,0.00459753,71585.0,71552.0,0.00554837]
[1773155137024,0.00459753,71585.0,71552.0,0.00011262]
[1773155137453,0.00459753,71582.0,71552.0,0.00011262]
[1773155138131,0.00459753,71582.0,71545.0,0.06988574]
[1773155138132,0.06984801,71584.0,71520.0,0.025]
[1773155138133,0.03,71580.0,71520.0,0.025]
[1773155138352,1.401542,71581.0,71520.0,0.025]
[1773155138353,0.00459753,71568.0,71520.0,0.025]
[1773155138537,0.18688501,71570.0,71517.0,0.06991294]
[1773155138538,0.18688501,71570.0,71525.0,1e-08]
[1773155138539,0.00459753,71546.0,71525.0,1e-08]
[1773155138837,0.03,71547.0,71525.0,1e-08]
[1773155138838,0.00459753,71542.0,71525.0,1e-08]
[1773155139491,0.00459753,71539.0,71525.0,1e-08]
[1773155139921,0.00144,71538.0,71525.0,1e-08]
[1773155140128,0.00459753,71537.0,71508.0,0.07004167]
[1773155140301,0.00459753,71537.0,71509.0,0.00144]
[1773155140546,0.00144,71536.0,71509.0,0.00144]
[1773155141537,0.00459753,71532.0,71508.0,0.07015448]
[1773155141750,0.00459753,71532.0,71508.0,0.07159448]
[1773155141926,0.00459753,71532.0,71508.0,0.00167281]
[1773155142173,0.06989683,71536.0,71508.0,0.00167281]
[1773155142174,0.00023,71550.0,71508.0,0.07015447]
[1773155142383,0.00023,71550.0,71509.0,0.00128887]
[1773155142384,0.00144,71547.0,71509.0,0.00128887]
[1773155142589,0.0698822,71549.0,71510.0,1.244899]
[1773155142590,0.03,71548.0,71510.0,1.244899]
[1773155142792,0.03,71548.0,71511.0,0.712351]
[1773155143089,0.07011217,71550.0,71510.0,0.19106715]
[1773155143090,0.00023,71550.0,71513.0,0.67006]
[1773155143364,0.07011143,71550.0,71515.0,0.265238]
[1773155143570,0.00459753,71548.0,71517.0,0.06991344]
[1773155143770,0.00459753,71548.0,71518.0,0.00128869]
[1773155144340,0.00459753,71548.0,71515.0,0.06991344]
[1773155144341,0.00459753,71548.0,71515.0,0.00144]
[1773155144507,0.00144,71547.0,71515.0,0.00144]
[1773155144779,0.00144,71546.0,71515.0,0.00144]
[1773155144982,0.00144,71546.0,71508.0,0.0701548]
[1773155144983,0.00459753,71545.0,71508.0,0.00023281]
[1773155145197,0.00459753,71545.0,71508.0,0.00167281]
[1773155145390,0.00459753,71545.0,71508.0,0.0718147]
[1773155145606,0.00459753,71540.0,71508.0,0.0718147]
[1773155145927,0.00459753,71540.0,71508.0,0.00189281]
[1773155146130,0.00459753,71540.0,71508.0,0.07181456]
[1773155146333,0.00459753,71540.0,71508.0,0.00189281]
[1773155146749,0.00489913,71538.0,71508.0,0.00045281]
[1773155146960,0.03,71539.0,71508.0,1e-08]
[1773155146961,0.00489913,71536.0,71508.0,1e-08]
[1773155147166,0.00489913,71518.0,71477.0,0.07135109]
[1773155147412,0.00489913,71516.0,71477.0,0.07135109]
[1773155147655,0.00489913,71513.0,71477.0,0.07135109]
[1773155147861,0.00489913,71513.0,71469.0,0.025]
[1773155147862,0.03,71514.0,71468.0,0.00134]
[1773155147863,0.03,71499.0,71468.0,0.00134]
[1773155148176,0.18778934,71500.0,71468.0,0.00134]
[1773155148177,0.03,71492.0,71468.0,0.00134]
[1773155148382,0.00489913,71491.0,71468.0,0.00134]
[1773155148791,0.00144,71490.0,71468.0,0.00134]
[1773155149060,0.00144,71490.0,71455.0,0.06997332]
[1773155149061,0.18801934,71500.0,71450.0,0.000844]
[1773155149062,0.03,71479.0,71450.0,0.000844]
[1773155149267,0.00144,71478.0,71450.0,0.000844]
[1773155149494,0.00456688,71477.0,71450.0,0.000844]
[1773155149691,0.00456688,71477.0,71450.0,0.07082243]
[1773155149692,0.03,71475.0,71450.0,0.07082243]
[1773155149840,0.03,71475.0,71451.0,0.0014]
[1773155150259,0.03,71475.0,71439.0,0.06998919]
[1773155150260,0.00456688,71474.0,71435.0,0.0495528]
[1773155150427,0.03023,71475.0,71436.0,0.0014]
[1773155150428,0.01394,71473.0,71436.0,0.0014]
[1773155150643,0.00456688,71471.0,71437.0,0.0014]
[1773155150855,0.00456688,71471.0,71438.0,0.00136]
[1773155151073,0.00530793,71440.0,71415.0,0.0700133]
[1773155151274,0.00144,71455.0,71416.0,0.13120412]
[1773155151474,0.00144,71455.0,71418.0,0.07001036]
[1773155151673,0.00144,71455.0,71419.0,0.12988412]
[1773155152084,0.10141411,71455.0,71419.0,0.12988412]
[1773155152283,0.03,71453.0,71420.0,0.00136]
[1773155152602,0.03,71453.0,71450.0,0.00022]
[1773155152814,0.03,71453.0,71442.0,0.00022]
[1773155153173,0.07140722,71463.0,71442.0,0.00022]
[1773155153174,0.03,71452.0,71442.0,0.00022]
[1773155153401,0.00456688,71466.0,71442.0,0.00022]
[1773155153402,0.07451018,71487.0,71443.0,0.00132]
[1773155153613,0.06993841,71492.0,71451.0,0.06997802]
[1773155153814,0.000112,71492.0,71452.0,1.176262]
[1773155154021,0.000112,71492.0,71453.0,0.0045152]
[1773155154244,0.000112,71492.0,71454.0,0.00132]
[1773155154436,0.000112,71492.0,71478.0,0.00104144]
[1773155154717,0.000112,71492.0,71460.0,0.00132]
[1773155155045,0.03,71491.0,71460.0,0.00132]
[1773155155250,0.03,71491.0,71461.0,0.02251483]
[1773155155665,0.03,71489.0,71462.0,0.07128725]
[1773155155950,0.03,71489.0,71462.0,0.06996725]
[1773155156150,0.0804994,71490.0,71462.0,0.06996725]
[1773155156151,0.03,71487.0,71463.0,0.00132]
[1773155156782,0.00023,71500.0,71464.0,0.00599572]
[1773155156990,0.00144,71515.0,71476.0,1.149083]